Cogmind - Beta 15 @@@ ROGUE MODE // 2025.05.05 @ 21:58:31 // Winter2019/RPGLIKE Player: Quartz Result: Destroyed by D-53 Grenadier with Mini Grenade Launcher Performance ------------- Evolutions (0) 0 Regions Visited (2) 400 Robots Destroyed (29) 145 Value Destroyed (555) 555 Prototype IDs (0) 0 Alien Tech Used (0) 0 Bonus (0) 0 TOTAL SCORE: 1100 Bonus ------- None Cogmind --------- Core Integrity 0/600 Matter 254/300 Energy 239/250 System Corruption 2% Temperature Cool (33) Movement Walking (190) Ox1 Location -10/Mines Parts ------- > --- POWER (1) -------- Ion Engine > --- PROPULSION (2) --- Aluminum Leg > --- UTILITY (4) ------ Improved Terrain Scanner Targeting Computer ECM Suite > --- WEAPON (2) ------- Medium Laser Assault Rifle > --- INVENTORY (2) ---- Maul Peak State ------------ > --- POWER ------------ Light Nuclear Core > --- PROPULSION ------- Aluminum Leg > --- UTILITY ---------- Terrain Scanner ECM Suite Propulsion Shielding > --- WEAPON ----------- Assault Rifle Light Assault Rifle > --- INVENTORY -------- (None) [Rating: 9] Favorites ----------- Power Ion Engine Engine Ion Engine Power Core Light Nuclear Core Propulsion Aluminum Leg Leg Aluminum Leg Utility ECM Suite Device ECM Suite Processor Targeting Computer Protection Propulsion Shielding Weapon Assault Rifle Energy Gun Medium Laser Ballistic Gun Assault Rifle Impact Weapon Maul Build | -11 -10 -10 ------- Run | Yrd Mat Min Slots Evolved 5 | 4 1 . Power . | . . . Propulsion 1 | . 1 . Utility 3 | 3 . . Weapon 1 | 1 . . Parts Attached 13 | 4 8 1 Power 3 | 1 2 . Engine 2 | 1 1 . Core 1 | . 1 . Reactor . | . . . Propulsion 1 | 1 . . Treads . | . . . Leg 1 | 1 . . Wheel . | . . . Hover . | . . . Flight . | . . . Utility 5 | . 4 1 Device 3 | . 2 1 Storage . | . . . Processor 1 | . 1 . Hackware . | . . . Protection 1 | . 1 . Artifact . | . . . Weapon 4 | 2 2 . Energy Gun 1 | . 1 . Energy Cannon . | . . . Ballistic Gun 2 | 2 . . Ballistic Cannon . | . . . Launcher . | . . . Special Weapon . | . . . Impact Weapon 1 | . 1 . Slashing Weapon . | . . . Piercing Weapon . | . . . Special Melee Weapon . | . . . Unidentified Prototypes . | . . . Parts Lost 2 | . 1 1 Power 1 | . 1 . Propulsion . | . . . Utility 1 | . . 1 Weapon . | . . . Highest Loss Streak 1 | . 1 1 To Critical Strikes . | . . . Average Backups . | . . 1 Power . | . . . Propulsion . | . . . Utility . | . . . Weapon . | . . 1 Tool/Special . | . . . Unused Backups . | . . . Power . | . . . Propulsion . | . . . Utility . | . . . Weapon . | . . . Tool/Special . | . . . Average Slot Usage (%) 79 | . 79 77 Engine 9 | . 9 11 Core 1 | . 2 . Leg 11 | . 11 11 Device 21 | . 20 22 Processor 5 | . 2 11 Protection 6 | . 9 . Energy Gun 7 | . 5 11 Ballistic Gun 15 | . 18 11 Peak Build Rating 9 | 4 9 9 Average Rating 7 | 2 7 7 On Entrance 4 | . 4 8 Naked Turns . | . . . Heaviest Build 13 | 8 13 12 Greatest Support 10 | 10 10 10 Greatest Overweight (x) 1 | . 1 1 Average Overweight (x) . | . . 1 Largest Inventory Capacity 2 | . 2 2 Average Capacity 1 | . . 2 Most Carried 2 | . 1 2 Average Carried . | . . 1 Final Capacity 2 | . 2 2 Final Carried 1 | . 1 1 Class Distribution -------------------- 100% | Mutant Dominant Class ---------------- Mutant | -10/Materials Mutant | -10/Mines Resources | -11 -10 -10 ----------- Run | Yrd Mat Min Matter Collected 623 | 240 326 57 Remotely . | . . . Salvage Created 839 | . 659 180 Parts 61 | . 50 11 Haulers Intercepted 2 | . 2 . Recyclers Shooed 2 | . 2 . Parts Field Recycled . | . . . Retrieved Matter . | . . . Parts Self-Destructed . | . . . Prevented . | . . . Kills | -11 -10 -10 ------- Run | Yrd Mat Min Combat Hostiles Destroyed 16 | . 13 3 Guns 16 | . 13 3 Classes Destroyed 9 | . 8 1 Worker 1 | . 1 . Builder 1 | . 1 . Tunneler 2 | . . 2 Hauler 2 | . 2 . Recycler 3 | . 2 1 Operator 2 | . 2 . Watcher 2 | . 2 . Swarmer 6 | . 3 3 Grunt 10 | . 10 . Best Kill Streak 5 | . 5 3 Combat Bots Only 4 | . 4 3 Max Kills in Single Turn 1 | . 1 1 Gunslinging . | . . . Exploded . | . . . Melee . | . . . Uniques/NPCs Destroyed . | . . . Combat | -11 -10 -10 -------- Run | Yrd Mat Min Hostile Shots Fired 120 | . 88 32 Missed 29 | . 24 5 Hits 91 | . 64 27 Projectile 91 | . 64 27 AOE 11 | . . 11 Damage Taken 1381 | . 826 555 Core 1096 | . 633 463 Absorbed by Shields . | . . . Redirected to Core 755 | . 475 280 Redirected to Shielding 53 | . 42 11 Core Remaining (%) 100 | 100 . . Volleys Fired 99 | . 82 17 Largest 2 | . 2 2 Hottest 70 | . 70 70 Shots Fired 187 | . 153 34 Gun 187 | . 153 34 Cannon . | . . . Launcher . | . . . Special . | . . . Kinetic 134 | . 117 17 Thermal 53 | . 36 17 Explosive . | . . . Electromagnetic . | . . . Robot Hit Streak 8 | . 8 6 Robot Miss Streak 4 | . 4 4 Penetration Max . | . . . Secondary Targets 6 | . 5 1 Max Gunslinging Chain 1 | . 1 1 Shots Hit Robots 109 | . 90 19 Core Hits 54 | . 46 8 Critical Kills . | . . . Critical Parts Destroyed . | . . . Critical Strikes 3 | . 1 2 Burn 3 | . 1 2 Melee Attacks . | . . . Impact . | . . . Slashing . | . . . Piercing . | . . . Sneak Attacks . | . . . Combat Hostiles . | . . . Follow-up Attacks . | . . . Damage Inflicted 1371 | 3 1094 274 Guns 1358 | . 1089 269 Cannons . | . . . Explosions . | . . . Melee . | . . . Ramming 13 | 3 5 5 Kinetic 981 | . 837 144 Thermal 377 | . 252 125 Explosive . | . . . Electromagnetic . | . . . Impact . | . . . Slashing . | . . . Piercing . | . . . Highest Corruption 2 | . 2 2 Average Corruption 2 | . 2 2 Corruption Purged . | . . . Corruption Blocked . | . . . Effects 20 | . 12 8 Message Errors 5 | . 2 3 Matter Fused 2 | . . 2 Heat Flow Errors 2 | . 1 1 Energy Discharges 4 | . 4 . Data Loss (minor) 3 | . 2 1 Data Loss (major) 1 | . . 1 Alerts 1 | . 1 . Weapon Failures 2 | . 2 . Overload Shots . | . . . Overflow Damage . | . . . Projectiles . | . . . Explosions . | . . . Melee . | . . . Knockbacks 1 | . 1 . Impact 1 | . 1 . Kinetic . | . . . Secondary . | . . . Self-Inflicted Damage 97 | . 97 . Shots 1 | . 1 . Rammed . | . . . Targets Rammed 5 | 2 2 1 Kicked 5 | 2 2 1 Crushed . | . . . Highest Temperature 366 | . 366 239 Average Temperature 80 | . 95 38 Received Heat Transfer 375 | . 375 . Effects 2 | . 1 1 Energy Bleed 2 | . 1 1 Siege Activations . | . . . Martial Activations . | . . . Shielding Activations . | . . . Robots Disrupted . | . . . Combat Hostiles . | . . . Robots Corrupted . | . . . Combat Hostiles . | . . . Parts Fried . | . . . Impact Corruptions . | . . . Robots Melted . | . . . Combat Hostiles . | . . . Parts Melted 2 | . 1 1 Heat Transferred 1332 | . 814 518 Parts Sabotaged . | . . . Parts Stolen . | . . . Parts Stripped . | . . . Power Chain Reactions . | . . . Alert | -11 -10 -10 ------- Run | Yrd Mat Min Maximum Alert Level . | . . . Low Security (%) 100 | 100 100 100 Level 1 . | . . . Level 2 . | . . . Level 3 . | . . . Level 4 . | . . . Level 5 . | . . . High Security . | . . . Max Security . | . . . Peak Influence 169 | . 169 85 Initial 25 | . . 25 Average 48 | . 68 10 Influence Increases 556 | . 471 85 Destroy 0b10 Robot/C 320 | . 260 60 Destroy 0b10 Robot/NC 65 | . 50 15 Destroy Leader 88 | . 78 10 Successful Hack 38 | . 38 . Disable Machine 15 | . 15 . Destroy Structure 15 | . 15 . Lose Combat Pursuer 15 | . 15 . Influence Decreases 556 | . 404 152 Entered New Map 42 | . . 42 Time Decay 494 | . 394 100 Lost Part 20 | . 10 10 Squads Dispatched 4 | . 4 . Investigation 1 | . 1 . Extermination . | . . . Reinforcement 3 | . 3 . Assault . | . . . Garrison . | . . . Intercept . | . . . Searches Triggered . | . . . Construction Impeded . | . . . Haulers Reinforced . | . . . Active Scanning Responses . | . . . Cargo Convoy Interrupts . | . . . Stealth | -11 -10 -10 --------- Run | Yrd Mat Min Distress Signals 4 | . 4 . Communications Jammed . | . . . Distress Signals . | . . . Times Spotted 30 | . 25 5 Peak Tracking Total 5 | . 5 3 Tactical Retreats 1 | . 1 . Traps | -11 -10 -10 ------- Run | Yrd Mat Min Traps Triggered 2 | . 2 . Indirectly . | . . . Trap Hack Attempts . | . . . Triggered . | . . . Disarmed . | . . . Reprogrammed . | . . . Reused . | . . . Traps Extracted . | . . . Installed . | . . . Triggered . | . . . Machines | -11 -10 -10 ---------- Run | Yrd Mat Min Machines Disabled 2 | . 2 . Max in Single Turn 1 | . 1 . Machines Repaired . | . . . Machines Dismantled . | . . . Machines Sabotaged . | . . . Overloaded Fab Kills . | . . . Hacking | -11 -10 -10 --------- Run | Yrd Mat Min Machines Accessed 4 | . 4 . Terminals 4 | . 4 . Fabricators . | . . . Repair Stations . | . . . Recycling Units . | . . . Scanalyzers . | . . . Garrison Access . | . . . Total Hacks 17 | . 17 . Successful 7 | . 7 . Failed 10 | . 10 . Catastrophic 1 | . 1 . Database Lockouts . | . . . Manual 14 | . 14 . Terminals 17 | . 17 . Fabricators . | . . . Repair Stations . | . . . Recycling Units . | . . . Scanalyzers . | . . . Garrison Access . | . . . Terminal Hacks 3 | . 3 . Branch Access Points 1 | . 1 . Terminal Index 1 | . 1 . Scanalyzer Index 1 | . 1 . Fabricator Hacks . | . . . Repair Station Hacks . | . . . Recycling Unit Hacks . | . . . Scanalyzer . | . . . Garrison Access Hacks . | . . . Unauthorized Hacks 4 | . 4 . Terminals 4 | . 4 . Botnet 4 | . 4 . Fabricators . | . . . Repair Stations . | . . . Recycling Units . | . . . Scanalyzers . | . . . Garrison Access . | . . . Data Cores Recovered . | . . . Used . | . . . Hacking Detections 4 | . 4 . Full Trace Events 1 | . 1 . Feedback Events . | . . . Feedback Blocked . | . . . Robot Schematics Acquired . | . . . Robots Built . | . . . Authchips . | . . . Time . | . . . Total Robot Build Rating . | . . . Part Schematics Acquired . | . . . Parts Built . | . . . Authchips . | . . . Time . | . . . Total Part Build Rating . | . . . Parts Repaired . | . . . Time . | . . . Parts Recycled . | . . . Recycled Matter . | . . . Retrieved Matter . | . . . Retrieved Components . | . . . Parts Scanalyzed . | . . . Part Schematics Acquired . | . . . Parts Damaged . | . . . Bothacking | -11 -10 -10 ------------ Run | Yrd Mat Min Used RIF Installer . | . . . Robots Hacked . | . . . Non-combat . | . . . Combat . | . . . Robot Hacks Applied . | . . . Relay Couplers Released . | . . . Fabnet Peak Effective % . | . . . Robots Rewired . | . . . Allies Hacked . | . . . Hacks Repelled . | . . . Allies | -11 -10 -10 -------- Run | Yrd Mat Min Total Allies . | . . . Largest Group . | . . . Highest-Rated Group . | . . . Highest-Rated Ally . | . . . Total Orders . | . . . Ally Attacks . | . . . Total Damage . | . . . Kills . | . . . Allies Corrupted . | . . . Allies Melted . | . . . Intel | -11 -10 -10 ------- Run | Yrd Mat Min Active Infowar (turns) 1963 | . 1291 672 Terrain 1963 | . 1291 672 ECM 1647 | . 975 672 Robot Analysis Total . | . . . Derelict Logs Recovered . | . . . Drone Launches . | . . . Drone Recoveries . | . . . Exploration | -11 -10 -10 ------------- Run | Yrd Mat Min Turns Passed 2085 | 51 1362 672 Spaces Moved 995 | 40 639 316 Core 6 | 6 . . Treads . | . . . Legs 989 | 34 639 316 Wheels . | . . . Hover . | . . . Flight . | . . . Fastest Speed 50 | 50 120 190 Average Speed 172 | 109 167 190 Slowest Speed 190 | 120 190 190 Overloaded Moves . | . . . Propulsion Burnouts . | . . . Robots Hopped . | . . . Potential Cave-ins . | . . . Cave-ins Triggered . | . . . Exploration Rate (%) 43 | 3 66 61 Regions Visited 2 Branch Regions 1 Pre-discovered Areas . | . . . Known Exits Taken 1 | . 1 . Unknown Exits Taken 1 | 1 . . Scrap Searched . | . . . Spaces Dug . | . . . Terrain Destroyed 21 | . 21 . Melee . | . . . Projectile . | . . . AOE 21 | . 21 . Terrain Rammed . | . . . Walls Destroyed . | . . . Machines Disabled . | . . . Actions | -11 -10 -10 --------- Run | Yrd Mat Min Total 1175 | 45 777 353 Wait 34 | . 20 14 Move 994 | 40 638 316 Hop . | . . . Pick Up 4 | . 3 1 Fast Attach 7 | 4 3 . Attach 2 | . 2 . Detach . | . . . Swap 5 | . 4 1 Drop 1 | . . 1 Fire 99 | . 82 17 Melee . | . . . Ram . | . . . Kick 4 | 1 2 1 Crush . | . . . Escape Stasis . | . . . Rewire . | . . . Trap . | . . . Miscellaneous 25 | . 23 2 Route ------- -11/Scrapyard -10/Materials (discovered 3 exits: [*Mat] / *Min x2) -10/Mines (discovered 2 exits: [*Mat x2]) History --------- Turn | Location | Event 1 | -11/Scrapyard | Upgraded with Utility slot (x3) 1 | -11/Scrapyard | Upgraded with Weapon slot (x1) 9 | -11/Scrapyard | Discovered new exit (range 15) 52 | -11/Scrapyard | Entered Materials 176 | -10/Materials | Identified exit to Mines 327 | -10/Materials | Build established: Mutant 912 | -10/Materials | Reached level 2 916 | -10/Materials | Upgraded with Propulsion slot (x1) 965 | -10/Materials | Discovered new exit (range 14) 1414 | -10/Materials | Entered Mines 1536 | -10/Mines | Discovered new exit (range 13) 1621 | -10/Mines | Discovered new exit (range 9) 2034 | -10/Mines | Assembled infested the area 2077 | -10/Mines | Core integrity fell below 50% 2084 | -10/Mines | Core integrity fell below 20% 2086 | -10/Mines | Destroyed by D-53 Grenadier with Mini Grenade Launcher Last Messages --------------- 01775_ K-01 Serf collects debris. 01786_ System corrupted: Matter fused (-5). 01828_ System corrupted: Matter fused (-10). 01864_ System corrupted: Substantial component data lost. 01890_ T-07 Excavator suffers critical hit (Burn). 01890_ T-07 Excavator destroyed. 01895_ Acquired Imp. Terrain Scanner. [Achievement: Omniscient Cartographer] 01898_ 7MIFDRPDUXI8QIZX4XZNUCHG Map ----- +----------------------------------------------------+ | #######?###?############?#?####?####?#???????????? | | ##########?###################?####??##??????????? | | #?##?##########?#?##?####??#??#####???##?????????? | | ##?#### ##########?#####?###??####?#?????????? | | ###### ####################??#?????????????? | | ?##### ##### ########?##?#????##?????????? | | ###### #######?#####??????????? | | ###### ## ##?#########???????????? | | ##### #### ### ###?#####?#?#?#????????? | | #### #### #### ###########??##????????? | | ### ##### ##### ###############????????? | | ### ###### ###### ##############??#??????? | | ### |=####### ###### ################???????? | | ### !%######### #####?# #######?########???????? | | ### !################## #################?#?#?#? | | ### ################### ## #################??? | | ## #################### # ##############?#### | | ## ################### ########?####### | | ### ################## #############?# | | ### ################ ############### | | ### ############## ############## | | ### ############ ########### | | ### ####### ######### | | #### #### ####### ### | | ############ ###### ## # | | ############ ##### @ #### ### # | | ############ ### ##### #### # | | ############ ## """d ##### ##### | | #### ####?## """% ###### ##### """" | | #### ###### # """d# ####### #### """" | | ### ####?# # ####### #### """" | | ## ##### ## ####### ####### | | # #### ### ######## ######## ##### | | #### ### ######## ? ##############? | | ##### ## r ####### ### ############??? | | ##### ## ##### #### ############ ?# | | """ ##### ## #### ##### ##?###?### ? | | """ ## ##### ######?## ? | | """ #?### ######### | | """ ###### ## ##### #######??? ??? | | ####### ##### ###?# ########? ?? # | | ################# ####??####### ?? ? ?# | | #########?####### ##?#?# #???###??#??#?# | | =[### ######### #??#? #??### #####?## ##?#?? | | [%#### #######? ###?? ???##?#####??#?????#? | | !=################ ?###?? ?????# #####?#???????? | | ################# #####?????????????? ???????? | | ############## ??###??????????????????????? | | #### #############? ?###???????????????????????? | | #### ############### ?##?? ????????????????????? | +----------------------------------------------------+ Best States ------------- Heat Dissipation 25 Energy Generation 14 Energy Capacity 250 Matter Stores 300 Matter Capacity 300 Sight Range 16 Terrain Scan Range 16 Terrain Scan Density 310 ECM Strength 1 Propulsion Shielding 33 Evasion (%) 55 Targeting Accuracy 5 Item Schematics ----------------- None Robot Schematics ------------------ None Fabricated ------------ Nothing Repaired ---------- Nothing Alien Tech Used ----------------- None Achievements -------------- Omniscient Cartographer Challenges ------------ None RPGLIKE | -11 -10 -10 --------- Run | Yrd Mat Min Levels Raised 1 | . 1 . XP Earned 5675 | 3000 1825 850 XP Spent 4420 | 2900 1520 . Upgrades 10 | 4 6 . Propulsion Slot 1 | . 1 . Utility Slot 3 | 3 . . Weapon Slot 1 | 1 . . Inventory Capacity 2 | . 2 . Terrain Scan Density 3 | . 3 . Protomatter Created 242 | . 229 13 Integrity Restored 525 | . 486 39 Core 496 | . 457 39 Parts 29 | . 29 . Protomatter Decayed 76 | . 64 12 Game ------ Seed SubdwellerPhysicsExpander Manual? 0 Play Time 00:14:28 Cumulative 26.9 hours Start 2025.05.05 @ 21:46:22 End 2025.05.05 @ 21:58:31 Sessions 1 Manual Loads 0 Difficulty Rogue Special Mode Winter2019/RPGLIKE Game No. 48 Rogue 48 Adventurer 0 Explorer 0 Win Type - Total 0 Types 0/0/0/0/0/0/0/0/0/0 Lore% 9 Gallery% 22 Achievement% 22 Wizard Run 0 Options --------- Layout 2 ASCII 0 Keyboard 0 Movement Arrows Keybinds 0 Fullscreen 1 Font 24/Smallcaps Map View 50x44 Zoom Use 0% Tactical HUD 1 Map Filters NONE Filters NONE Steam 1 RUN: 18e5a7f4-0b9b-46c3-9b7f-9b6233ef2b46